[Event "Championnat d'Europe de Blitz"]
[Date "2024.12.09"]
[White "Georgiev, Kiril"]
[Black "Herega, Nejc"]
[WhiteElo "2537"]
[BlackElo "2249"]
[Round "3.30"]
[Result "1-0"]
[TimeControl "180+2"]

1. c4 {[%emt 00:00:01] [%clk 00:03:03]} e6 {[%emt 00:00:04] [%clk 00:03:02]} 2.
Nf3 {[%emt 00:00:01] [%clk 00:03:02]} d5 {[%emt 00:00:03] [%clk 00:03:01]} 3. b3
{[%emt 00:00:02] [%clk 00:03:03]} Nf6 {[%emt 00:00:08] [%clk 00:02:55]} 4. Bb2
{[%emt 00:00:02] [%clk 00:03:02]} c5 {[%emt 00:00:09] [%clk 00:02:48]} 5. e3
{[%emt 00:00:04] [%clk 00:03:00]} Nc6 {[%emt 00:00:02] [%clk 00:02:48]} 6. cxd5
{[%emt 00:00:02] [%clk 00:03:00]} exd5 {[%emt 00:00:01] [%clk 00:02:48]} 7. Bb5
{[%emt 00:00:03] [%clk 00:02:59]} Bd6 {[%emt 00:00:10] [%clk 00:02:39]} 8. d4
{[%emt 00:00:06] [%clk 00:02:56]} cxd4 {[%emt 00:00:34] [%clk 00:02:08]} 9. Qxd4
{[%emt 00:00:19] [%clk 00:02:38]} O-O {[%emt 00:00:13] [%clk 00:01:57]} 10. Bxc6
{[%emt 00:00:05] [%clk 00:02:36]} bxc6 {[%emt 00:00:01] [%clk 00:01:57]} 11. O-O
{[%emt 00:00:02] [%clk 00:02:36]} Bb7 {[%emt 00:00:12] [%clk 00:01:47]} 12. Nbd2
{[%emt 00:00:07] [%clk 00:02:30]} c5 {[%emt 00:00:08] [%clk 00:01:42]} 13. Qh4
{[%emt 00:00:02] [%clk 00:02:30]} Be7 {[%emt 00:00:02] [%clk 00:01:43]} 14. Rfd1
{[%emt 00:00:07] [%clk 00:02:25]} Ne4 {[%emt 00:00:10] [%clk 00:01:35]} 15. Qg4
{[%emt 00:00:08] [%clk 00:02:17]} Bf6 {[%emt 00:00:16] [%clk 00:01:22]} 16. Bxf6
{[%emt 00:00:13] [%clk 00:02:06]} Qxf6 {[%emt 00:00:05] [%clk 00:01:19]} 17.
Nxe4 {[%emt 00:00:05] [%clk 00:02:03]} dxe4 {[%emt 00:00:01] [%clk 00:01:20]}
18. Nd2 {[%emt 00:00:04] [%clk 00:02:00]} Qe7 {[%emt 00:00:04] [%clk 00:01:18]}
19. Nc4 {[%emt 00:00:10] [%clk 00:01:53]} Rfd8 {[%emt 00:00:03] [%clk 00:01:18]}
20. Qf4 {[%emt 00:00:02] [%clk 00:01:52]} Ba6 {[%emt 00:00:15] [%clk 00:01:05]}
21. Nd6 {[%emt 00:00:09] [%clk 00:01:45]} Bd3 {[%emt 00:00:04] [%clk 00:01:03]}
22. Nf5 {[%emt 00:00:05] [%clk 00:01:42]} Qf6 {[%emt 00:00:01] [%clk 00:01:04]}
23. h4 {[%emt 00:00:12] [%clk 00:01:32]} Rd5 {[%emt 00:00:22] [%clk 00:00:44]}
24. Ng3 {[%emt 00:00:15] [%clk 00:01:19]} Qxf4 {[%emt 00:00:02] [%clk 00:00:45]}
25. exf4 {[%clk 00:01:19]} f5 {[%emt 00:00:03] [%clk 00:00:44]} 26. Nf1 {[%emt
00:00:05] [%clk 00:01:16]} g6 {[%emt 00:00:08] [%clk 00:00:38]} 27. Ne3 {[%emt
00:00:02] [%clk 00:01:16]} Rd4 {[%emt 00:00:01] [%clk 00:00:39]} 28. Rdc1 {[%emt
00:00:05] [%clk 00:01:13]} Rc8 {[%emt 00:00:04] [%clk 00:00:37]} 29. Rc3 {[%clk
00:01:14]} a5 {[%emt 00:00:08] [%clk 00:00:31]} 30. Rac1 {[%emt 00:00:02] [%clk
00:01:14]} a4 {[%emt 00:00:01] [%clk 00:00:31]} 31. Rxc5 {[%emt 00:00:02] [%clk
00:01:14]} Rxc5 {[%emt 00:00:02] [%clk 00:00:31]} 32. Rxc5 {[%clk 00:01:15]}
axb3 {[%emt 00:00:04] [%clk 00:00:29]} 33. axb3 {[%emt 00:00:04] [%clk
00:01:14]} Rb4 {[%clk 00:00:30]} 34. Rc8+ {[%emt 00:00:09] [%clk 00:01:07]} Kg7
{[%emt 00:00:02] [%clk 00:00:31]} 35. Rc7+ {[%emt 00:00:01] [%clk 00:01:07]} Kg8
{[%emt 00:00:01] [%clk 00:00:32]} 36. Nd5 {[%emt 00:00:06] [%clk 00:01:03]} Rxb3
{[%emt 00:00:03] [%clk 00:00:31]} 37. Nf6+ {[%clk 00:01:04]} Kf8 {[%emt
00:00:03] [%clk 00:00:31]} 38. Nxh7+ {[%emt 00:00:01] [%clk 00:01:04]} Ke8
{[%emt 00:00:02] [%clk 00:00:31]} 39. Rg7 {[%emt 00:00:07] [%clk 00:00:59]} Rb6
{[%emt 00:00:02] [%clk 00:00:31]} 40. Kh2 {[%emt 00:00:03] [%clk 00:00:57]} Rb2
{[%emt 00:00:09] [%clk 00:00:25]} 41. Kg3 {[%emt 00:00:02] [%clk 00:00:57]} Rb6
{[%emt 00:00:03] [%clk 00:00:25]} 42. Ng5 {[%emt 00:00:04] [%clk 00:00:55]} Bc4
{[%emt 00:00:03] [%clk 00:00:24]} 43. Rc7 {[%emt 00:00:03] [%clk 00:00:53]} Bd5
{[%emt 00:00:05] [%clk 00:00:22]} 44. Rc5 {[%emt 00:00:05] [%clk 00:00:50]} Rb3+
{[%emt 00:00:07] [%clk 00:00:18]} 45. Kh2 {[%emt 00:00:02] [%clk 00:00:49]} Bb7
{[%emt 00:00:03] [%clk 00:00:17]} 46. Rc7 {[%emt 00:00:03] [%clk 00:00:48]} Rb2
{[%clk 00:00:18]} 47. Nh3 {[%emt 00:00:03] [%clk 00:00:47]} e3 {[%emt 00:00:02]
[%clk 00:00:19]} 48. Rc1 {[%emt 00:00:19] [%clk 00:00:30]} e2 {[%emt 00:00:08]
[%clk 00:00:14]} 49. Re1 {[%emt 00:00:04] [%clk 00:00:27]} Ba6 {[%emt 00:00:02]
[%clk 00:00:15]} 50. Ng1 {[%emt 00:00:02] [%clk 00:00:26]} Kf7 {[%emt 00:00:04]
[%clk 00:00:14]} 51. f3 {[%emt 00:00:02] [%clk 00:00:27]} Rd2 {[%emt 00:00:02]
[%clk 00:00:14]} 52. Kg3 {[%clk 00:00:28]} Rd1 {[%emt 00:00:09] [%clk 00:00:07]}
53. Kf2 {[%emt 00:00:02]} Rd4 {[%clk 00:00:09]} 54. g3 {[%emt 00:00:03] [%clk
00:00:27]} Rd3 {[%emt 00:00:06] [%clk 00:00:05]} 55. Rxe2 {[%emt 00:00:04] [%clk
00:00:26]} Bb7 {[%emt 00:00:02] [%clk 00:00:06]} 56. Rb2 {[%emt 00:00:02] [%clk
00:00:26]} Bd5 {[%emt 00:00:03] [%clk 00:00:05]} 57. Re2 {[%emt 00:00:01] [%clk
00:00:26]} Kf6 {[%emt 00:00:02] [%clk 00:00:06]} 58. Re3 {[%clk 00:00:27]} Rd2+
{[%emt 00:00:01] [%clk 00:00:07]} 59. Kf1 {[%emt 00:00:01] [%clk 00:00:27]} Bc4+
{[%emt 00:00:03] [%clk 00:00:06]} 60. Ne2 {[%clk 00:00:28]} Rd1+ {[%emt
00:00:01] [%clk 00:00:07]} 61. Kg2 {[%emt 00:00:01] [%clk 00:00:28]} Rd2 {[%emt
00:00:01] [%clk 00:00:08]} 62. Kf2 {[%clk 00:00:30]} Rc2 {[%clk 00:00:09]} 63.
g4 {[%emt 00:00:03] [%clk 00:00:29]} Rd2 {[%emt 00:00:03] [%clk 00:00:09]} 64.
Ke1 {[%emt 00:00:04]} Ra2 {[%clk 00:00:08]} 65. Ng3 {[%emt 00:00:05] [%clk
00:00:27]} Rg2 {[%emt 00:00:04] [%clk 00:00:06]} 66. g5+ {[%emt 00:00:08] [%clk
00:00:20]} Kf7 {[%clk 00:00:07]} 67. Ne2 {[%emt 00:00:01] [%clk 00:00:21]} Rh2
{[%clk 00:00:09]} 68. Nd4 {[%emt 00:00:04] [%clk 00:00:19]} Rxh4 {[%emt
00:00:02] [%clk 00:00:09]} 69. Rc3 {[%clk 00:00:21]} Bd5 {[%emt 00:00:04] [%clk
00:00:08]} 70. Rc7+ {[%emt 00:00:03] [%clk 00:00:19]} Kg8 {[%emt 00:00:03] [%clk
00:00:07]} 71. Rc5 {[%emt 00:00:02] [%clk 00:00:19]} Bf7 {[%emt 00:00:04] [%clk
00:00:05]} 72. Rc8+ {[%emt 00:00:03] [%clk 00:00:17]} Kg7 {[%clk 00:00:06]} 73.
Rc7 {[%emt 00:00:01] [%clk 00:00:18]} Kg8 {[%clk 00:00:08]} 74. Kf2 {[%emt
00:00:02] [%clk 00:00:17]} Rxf4 {[%emt 00:00:02] [%clk 00:00:08]} 75. Ke3 {[%clk
00:00:19]} Rh4 {[%emt 00:00:01] [%clk 00:00:09]} 76. Nc6 {[%emt 00:00:01] [%clk
00:00:20]} Rc4 {[%emt 00:00:03] [%clk 00:00:08]} 77. Ne7+ {[%emt 00:00:01] [%clk
00:00:21]} Kf8 {[%clk 00:00:10]} 78. Nxg6+ {[%emt 00:00:02] [%clk 00:00:21]} Kg8
{[%emt 00:00:02] [%clk 00:00:10]} 79. Rxc4 {[%emt 00:00:02] [%clk 00:00:20]}
Bxc4 {[%clk 00:00:11]} 80. Ne7+ {[%emt 00:00:02] [%clk 00:00:20]} Kf7 {[%emt
00:00:01] [%clk 00:00:12]} 81. Nxf5 {[%clk 00:00:21]} Kg6 {[%clk 00:00:13]} 82.
Kf4 {[%clk 00:00:23]} Be2 {[%emt 00:00:02] [%clk 00:00:14]} 83. Nd4 {[%emt
00:00:03] [%clk 00:00:22]} Bc4 {[%emt 00:00:01] [%clk 00:00:15]} 84. Kg4 {[%emt
00:00:01] [%clk 00:00:23]} Ba6 {[%emt 00:00:02] [%clk 00:00:15]} 85. f4 {[%clk
00:00:24]} Bc8+ {[%emt 00:00:01] [%clk 00:00:16]} 86. f5+ {[%clk 00:00:25]} Kg7
{[%emt 00:00:01] [%clk 00:00:17]} 87. Kf4 {[%emt 00:00:01] [%clk 00:00:26]} Kf7
{[%clk 00:00:18]} 88. Nf3 {[%emt 00:00:01] [%clk 00:00:27]} Bb7 {[%emt 00:00:02]
[%clk 00:00:19]} 89. Ne5+ {[%emt 00:00:01] [%clk 00:00:27]} Kf8 {[%clk
00:00:21]} 90. f6 {[%emt 00:00:01] [%clk 00:00:28]} Bc8 {[%emt 00:00:02] [%clk
00:00:21]} 91. g6 {[%emt 00:00:01] [%clk 00:00:29]} Kg8 {[%clk 00:00:23]} 92.
Kg5 {[%emt 00:00:01] [%clk 00:00:29]} Be6 {[%emt 00:00:01] [%clk 00:00:24]} 93.
Ng4 {[%emt 00:00:04] [%clk 00:00:27]} Bd7 {[%emt 00:00:03] [%clk 00:00:23]} 94.
Nh6+ {[%emt 00:00:03] [%clk 00:00:26]} 1-0

[Site "Europe Echecs"]

[Event "Championnat d'Europe de Blitz"]
[Date "2024.12.09"]
[White "Brunner, Nicolas"]
[Black "Pichot, Alan"]
[WhiteElo "2413"]
[BlackElo "2637"]
[Round "3.31"]
[Result "0-1"]
[TimeControl "180+2"]

1. d4 {[%emt 00:00:02] [%clk 00:03:02]} Nf6 {[%emt 00:00:01] [%clk 00:03:03]} 2.
c4 {[%clk 00:03:04]} e6 {[%emt 00:00:01] [%clk 00:03:03]} 3. Nc3 {[%clk
00:03:04]} Bb4 {[%emt 00:00:02] [%clk 00:03:04]} 4. Nf3 {[%emt 00:00:01] [%clk
00:03:05]} b6 {[%emt 00:00:07] [%clk 00:02:59]} 5. e3 {[%emt 00:00:01] [%clk
00:03:06]} Bb7 {[%emt 00:00:02] [%clk 00:02:59]} 6. Bd3 {[%emt 00:00:01] [%clk
00:03:07]} O-O {[%emt 00:00:04] [%clk 00:02:57]} 7. O-O {[%emt 00:00:02] [%clk
00:03:06]} d6 {[%emt 00:00:13] [%clk 00:02:46]} 8. Bd2 {[%emt 00:00:32] [%clk
00:02:36]} Nbd7 {[%emt 00:00:02] [%clk 00:02:46]} 9. Rc1 {[%emt 00:00:07] [%clk
00:02:32]} Bxc3 {[%emt 00:00:06] [%clk 00:02:41]} 10. Bxc3 {[%emt 00:00:02]
[%clk 00:02:32]} Ne4 {[%emt 00:00:01] [%clk 00:02:42]} 11. Be1 {[%emt 00:00:05]
[%clk 00:02:30]} a5 {[%emt 00:00:04] [%clk 00:02:40]} 12. Nd2 {[%emt 00:00:07]
[%clk 00:02:24]} f5 {[%emt 00:00:05] [%clk 00:02:36]} 13. Qe2 {[%emt 00:00:12]
[%clk 00:02:14]} Qe7 {[%emt 00:00:08] [%clk 00:02:30]} 14. f3 {[%emt 00:00:03]
[%clk 00:02:14]} Ng5 {[%emt 00:00:04] [%clk 00:02:28]} 15. f4 {[%emt 00:00:39]
[%clk 00:01:37]} Ne4 {[%emt 00:00:09] [%clk 00:02:21]} 16. Nxe4 {[%emt 00:00:04]
[%clk 00:01:34]} fxe4 {[%emt 00:00:18] [%clk 00:02:05]} 17. Bb1 {[%emt 00:00:01]
[%clk 00:01:35]} e5 {[%emt 00:00:11] [%clk 00:01:57]} 18. b3 {[%emt 00:00:22]
[%clk 00:01:15]} exd4 {[%emt 00:00:10] [%clk 00:01:49]} 19. exd4 {[%clk
00:01:16]} Rae8 {[%clk 00:01:50]} 20. Qe3 {[%emt 00:00:07] [%clk 00:01:12]} Nf6
{[%emt 00:00:05] [%clk 00:01:46]} 21. h3 {[%emt 00:00:02] [%clk 00:01:12]} d5
{[%emt 00:00:06] [%clk 00:01:43]} 22. c5 {[%emt 00:00:08] [%clk 00:01:05]} Ba6
{[%emt 00:00:02] [%clk 00:01:43]} 23. Rf2 {[%emt 00:00:01] [%clk 00:01:06]} Qd7
{[%emt 00:00:10] [%clk 00:01:36]} 24. g4 {[%emt 00:00:16] [%clk 00:00:51]} Bd3
{[%emt 00:00:18] [%clk 00:01:20]} 25. a3 {[%emt 00:00:30] [%clk 00:00:24]} bxc5
{[%emt 00:00:03] [%clk 00:01:18]} 26. Bxd3 {[%emt 00:00:11] [%clk 00:00:15]}
exd3 {[%emt 00:00:01] [%clk 00:01:19]} 27. Qxd3 {[%clk 00:00:16]} Ne4 {[%emt
00:00:02] [%clk 00:01:18]} 28. Rf1 {[%emt 00:00:04] [%clk 00:00:13]} h5 {[%emt
00:00:12] [%clk 00:01:08]} 29. gxh5 {[%emt 00:00:05] [%clk 00:00:10]} Rf5 {[%emt
00:00:07] [%clk 00:01:03]} 30. Kh2 {[%emt 00:00:03] [%clk 00:00:09]} Rxh5 {[%emt
00:00:02] [%clk 00:01:03]} 31. dxc5 {[%emt 00:00:05] [%clk 00:00:06]} Qf5 {[%emt
00:00:09] [%clk 00:00:55]} 32. Bxa5 {[%emt 00:00:01] [%clk 00:00:08]} Re6 {[%emt
00:00:01] [%clk 00:00:56]} 33. Bxc7 {[%emt 00:00:02] [%clk 00:00:08]} Rxh3+
{[%emt 00:00:27] [%clk 00:00:30]} 34. Qxh3 {[%clk 00:00:09]} Rh6 {[%clk
00:00:32]} 35. Qxh6 {[%emt 00:00:01] [%clk 00:00:09]} gxh6 {[%clk 00:00:33]} 36.
Rg1+ {[%emt 00:00:01] [%clk 00:00:10]} Kf7 {[%clk 00:00:34]} 37. Be5 {[%emt
00:00:01] [%clk 00:00:11]} Qh5+ {[%emt 00:00:01] [%clk 00:00:35]} 38. Kg2 {[%emt
00:00:01] [%clk 00:00:12]} Qe2+ {[%emt 00:00:02] [%clk 00:00:35]} 39. Kh3 {[%emt
00:00:02] [%clk 00:00:13]} Nf2+ {[%emt 00:00:13] [%clk 00:00:23]} 40. Kh4 {[%emt
00:00:03] [%clk 00:00:11]} Nd3 {[%emt 00:00:06] [%clk 00:00:20]} 41. Rcf1 {[%emt
00:00:02] [%clk 00:00:11]} Ke6 {[%emt 00:00:15] [%clk 00:00:07]} 42. c6 {[%clk
00:00:12]} Kf5 {[%emt 00:00:02] [%clk 00:00:07]} 43. c7 {[%emt 00:00:02] [%clk
00:00:12]} Qh2+ {[%clk 00:00:08]} 0-1

[Site "Europe Echecs"]

[Event "Championnat d'Europe de Blitz"]
[Date "2024.12.09"]
[White "Dvirnyy, Danyyil"]
[Black "Upleger, Martin"]
[WhiteElo "2491"]
[BlackElo "2297"]
[Round "3.32"]
[Result "1-0"]
[TimeControl "180+2"]

1. d4 {[%emt 00:00:02] [%clk 00:03:00]} Nf6 {[%emt 00:00:02] [%clk 00:03:02]} 2.
c4 {[%emt 00:00:01] [%clk 00:03:01]} e6 {[%emt 00:00:02] [%clk 00:03:02]} 3. Nf3
{[%emt 00:00:09] [%clk 00:02:53]} b6 {[%emt 00:00:05] [%clk 00:03:01]} 4. Bg5
{[%emt 00:00:10] [%clk 00:02:43]} Bb7 {[%emt 00:00:10] [%clk 00:02:53]} 5. Nc3
{[%emt 00:00:02] [%clk 00:02:44]} Bb4 {[%emt 00:00:24] [%clk 00:02:31]} 6. Nd2
{[%emt 00:00:02] [%clk 00:02:43]} Bxc3 {[%emt 00:00:05] [%clk 00:02:28]} 7. bxc3
{[%clk 00:02:44]} h6 {[%emt 00:00:02] [%clk 00:02:29]} 8. Bh4 {[%emt 00:00:01]
[%clk 00:02:45]} d6 {[%emt 00:00:09] [%clk 00:02:22]} 9. e4 {[%emt 00:00:16]
[%clk 00:02:31]} g5 {[%emt 00:00:08] [%clk 00:02:16]} 10. Bg3 {[%emt 00:00:02]
[%clk 00:02:32]} Nxe4 {[%emt 00:00:08] [%clk 00:02:10]} 11. Nxe4 {[%emt
00:00:07] [%clk 00:02:26]} Bxe4 {[%emt 00:00:02] [%clk 00:02:10]} 12. h4 {[%emt
00:00:02] [%clk 00:02:26]} Rg8 {[%emt 00:00:06] [%clk 00:02:06]} 13. hxg5 {[%emt
00:00:02] [%clk 00:02:26]} hxg5 {[%emt 00:00:01] [%clk 00:02:07]} 14. Rh6 {[%emt
00:00:28] [%clk 00:02:00]} Nd7 {[%emt 00:00:34] [%clk 00:01:35]} 15. a4 {[%emt
00:00:03] [%clk 00:01:59]} a5 {[%emt 00:00:22] [%clk 00:01:15]} 16. Bd3 {[%emt
00:00:02] [%clk 00:01:59]} Bxd3 {[%emt 00:00:18] [%clk 00:01:00]} 17. Qxd3
{[%emt 00:00:01] [%clk 00:01:59]} Qe7 {[%emt 00:00:07] [%clk 00:00:55]} 18. Rb1
{[%emt 00:00:16] [%clk 00:01:45]} Rc8 {[%emt 00:00:32] [%clk 00:00:25]} 19. Qf3
{[%emt 00:00:12] [%clk 00:01:34]} Nf8 {[%emt 00:00:05] [%clk 00:00:23]} 20. Qb7
{[%emt 00:00:34] [%clk 00:01:01]} Qd7 {[%emt 00:00:02] [%clk 00:00:23]} 21. Rb5
{[%emt 00:00:03] [%clk 00:01:00]} Kd8 {[%emt 00:00:12] [%clk 00:00:13]} 22. Qf3
{[%emt 00:00:24] [%clk 00:00:38]} f5 {[%emt 00:00:01] [%clk 00:00:14]} 23. Qh5
{[%emt 00:00:08] [%clk 00:00:32]} f4 {[%emt 00:00:06] [%clk 00:00:10]} 24. Rxg5
{[%emt 00:00:02] [%clk 00:00:31]} Rxg5 {[%emt 00:00:10] [%clk 00:00:00]} 1-0

[Site "Europe Echecs"]

[Event "Championnat d'Europe de Blitz"]
[Date "2024.12.09"]
[White "Denk, Adolf"]
[Black "Subelj, Jan"]
[WhiteElo "2113"]
[BlackElo "2526"]
[Round "3.33"]
[Result "0-1"]
[TimeControl "180+2"]

1. d4 {[%emt 00:01:33] [%clk 00:03:04]} Nf6 {[%emt 00:00:02] [%clk 00:03:03]} 2.
Nf3 {[%clk 00:03:05]} c6 {[%emt 00:00:02] [%clk 00:03:04]} 3. g3 {[%emt
00:00:04] [%clk 00:03:02]} d5 {[%emt 00:00:01] [%clk 00:03:04]} 4. Bg2 {[%clk
00:03:03]} Bf5 {[%clk 00:03:05]} 5. Nbd2 {[%emt 00:00:07] [%clk 00:02:58]} h6
{[%emt 00:00:02] [%clk 00:03:06]} 6. b3 {[%emt 00:00:05] [%clk 00:02:55]} e6
{[%clk 00:03:06]} 7. Bb2 {[%clk 00:02:57]} Nbd7 {[%emt 00:00:01] [%clk
00:03:07]} 8. O-O {[%emt 00:00:03] [%clk 00:02:56]} Bd6 {[%emt 00:00:01] [%clk
00:03:07]} 9. h3 {[%emt 00:00:09] [%clk 00:02:48]} Qe7 {[%emt 00:00:02] [%clk
00:03:07]} 10. c4 {[%emt 00:00:04] [%clk 00:02:47]} Ba3 {[%emt 00:00:01] [%clk
00:03:07]} 11. Qc1 {[%emt 00:00:05] [%clk 00:02:43]} Bxb2 {[%emt 00:00:03] [%clk
00:03:07]} 12. Qxb2 {[%clk 00:02:45]} O-O {[%emt 00:00:02] [%clk 00:03:07]} 13.
Ne5 {[%emt 00:00:04] [%clk 00:02:43]} a5 {[%emt 00:00:01] [%clk 00:03:08]} 14.
a3 {[%emt 00:00:11] [%clk 00:02:34]} Bh7 {[%emt 00:00:10] [%clk 00:02:58]} 15.
Rac1 {[%emt 00:00:11] [%clk 00:02:25]} Rfd8 {[%emt 00:00:04] [%clk 00:02:56]}
16. Kh2 {[%emt 00:00:13] [%clk 00:02:14]} Nxe5 {[%emt 00:00:10] [%clk 00:02:48]}
17. dxe5 {[%clk 00:02:15]} Nd7 {[%emt 00:00:01] [%clk 00:02:49]} 18. e4 {[%emt
00:00:02] [%clk 00:02:15]} Nc5 {[%emt 00:00:33] [%clk 00:02:18]} 19. cxd5 {[%emt
00:00:06] [%clk 00:02:11]} cxd5 {[%emt 00:00:09] [%clk 00:02:11]} 20. exd5
{[%emt 00:00:13] [%clk 00:02:00]} Nd3 {[%clk 00:02:12]} 21. Qa1 {[%emt 00:00:11]
[%clk 00:01:52]} exd5 {[%emt 00:00:24] [%clk 00:01:49]} 22. Rcd1 {[%emt
00:00:12] [%clk 00:01:41]} Qxe5 {[%emt 00:00:03] [%clk 00:01:49]} 23. Qa2 {[%emt
00:00:09] [%clk 00:01:34]} Rac8 {[%emt 00:00:03] [%clk 00:01:48]} 24. Nf3 {[%emt
00:00:01] [%clk 00:01:34]} Qf6 {[%emt 00:00:01] [%clk 00:01:49]} 25. Rd2 {[%emt
00:00:05] [%clk 00:01:31]} Nc1 {[%emt 00:00:09] [%clk 00:01:43]} 26. Qb2 {[%emt
00:00:09] [%clk 00:01:24]} Qxb2 {[%emt 00:00:01] [%clk 00:01:43]} 27. Rxb2
{[%clk 00:01:26]} d4 {[%emt 00:00:03] [%clk 00:01:43]} 28. Ne5 {[%emt 00:00:06]
[%clk 00:01:22]} Rc3 {[%emt 00:00:12] [%clk 00:01:32]} 29. b4 {[%emt 00:00:08]
[%clk 00:01:17]} axb4 {[%emt 00:00:08] [%clk 00:01:26]} 30. axb4 {[%emt
00:00:04] [%clk 00:01:15]} d3 {[%emt 00:00:02] [%clk 00:01:27]} 31. Rd2 {[%emt
00:00:08] [%clk 00:01:09]} Nb3 {[%emt 00:00:01] [%clk 00:01:27]} 32. Rdd1 {[%emt
00:00:02] [%clk 00:01:09]} d2 {[%emt 00:00:01] [%clk 00:01:28]} 33. Bxb7 {[%emt
00:00:07] [%clk 00:01:04]} Bc2 {[%emt 00:00:02] [%clk 00:01:29]} 34. Bf3 {[%emt
00:00:07] [%clk 00:00:57]} Bxd1 {[%emt 00:00:04] [%clk 00:01:28]} 35. Bxd1
{[%emt 00:00:01] [%clk 00:00:57]} Rc1 {[%clk 00:01:30]} 36. Kg2 {[%emt 00:00:04]
[%clk 00:00:57]} Nd4 {[%emt 00:00:09] [%clk 00:01:23]} 37. f4 {[%emt 00:00:08]
[%clk 00:00:51]} Nb5 {[%emt 00:00:07] [%clk 00:01:17]} 38. Kf2 {[%emt 00:00:07]
[%clk 00:00:47]} Nc3 {[%emt 00:00:01] [%clk 00:01:18]} 39. Bb3 {[%emt 00:00:02]
[%clk 00:00:47]} Rxf1+ {[%emt 00:00:02] [%clk 00:01:18]} 40. Kxf1 {[%clk
00:00:48]} d1=Q+ {[%emt 00:00:04] [%clk 00:01:16]} 0-1

[Site "Europe Echecs"]

[Event "Championnat d'Europe de Blitz"]
[Date "2024.12.09"]
[White "Kuzubov, Yuriy"]
[Black "Magold, Filip"]
[WhiteElo "2595"]
[BlackElo "2428"]
[Round "3.34"]
[Result "0-1"]
[TimeControl "180+2"]

1. d4 {[%clk 00:03:03]} d5 {[%emt 00:00:02] [%clk 00:03:03]} 2. c4 {[%emt
00:00:02] [%clk 00:03:03]} c6 {[%clk 00:03:04]} 3. Nf3 {[%clk 00:03:04]} Nf6
{[%emt 00:00:02] [%clk 00:03:05]} 4. Nc3 {[%clk 00:03:05]} dxc4 {[%emt 00:00:01]
[%clk 00:03:05]} 5. a4 {[%clk 00:03:06]} Bf5 {[%emt 00:00:01] [%clk 00:03:06]}
6. Nh4 {[%emt 00:00:01] [%clk 00:03:07]} e6 {[%emt 00:00:01] [%clk 00:03:07]} 7.
Nxf5 {[%emt 00:00:02] [%clk 00:03:07]} exf5 {[%emt 00:00:02] [%clk 00:03:07]} 8.
e3 {[%emt 00:00:01] [%clk 00:03:07]} Nbd7 {[%emt 00:00:13] [%clk 00:02:57]} 9.
Bxc4 {[%emt 00:00:07] [%clk 00:03:02]} Bd6 {[%emt 00:00:16] [%clk 00:02:42]} 10.
Qc2 {[%emt 00:00:04] [%clk 00:03:01]} g6 {[%emt 00:00:05] [%clk 00:02:38]} 11.
f3 {[%emt 00:00:19] [%clk 00:02:43]} O-O {[%emt 00:00:04] [%clk 00:02:37]} 12.
O-O {[%emt 00:00:04] [%clk 00:02:41]} c5 {[%emt 00:00:29] [%clk 00:02:10]} 13.
dxc5 {[%emt 00:00:23] [%clk 00:02:20]} Bxc5 {[%emt 00:00:03] [%clk 00:02:09]}
14. Kh1 {[%emt 00:00:04] [%clk 00:02:18]} Ne5 {[%emt 00:00:08] [%clk 00:02:04]}
15. Be2 {[%emt 00:00:26] [%clk 00:01:53]} Rc8 {[%emt 00:00:14] [%clk 00:01:51]}
16. e4 {[%emt 00:00:10] [%clk 00:01:46]} fxe4 {[%emt 00:00:10] [%clk 00:01:43]}
17. fxe4 {[%emt 00:00:04] [%clk 00:01:43]} Nfg4 {[%emt 00:00:03] [%clk
00:01:42]} 18. Bxg4 {[%emt 00:00:38] [%clk 00:01:07]} Nxg4 {[%emt 00:00:02]
[%clk 00:01:41]} 19. Bf4 {[%emt 00:00:15]} Qd4 {[%clk 00:01:36]} 20. h3 {[%emt
00:00:32] [%clk 00:00:33]} Ne3 {[%emt 00:00:52] [%clk 00:00:46]} 21. Bxe3 {[%emt
00:00:01] [%clk 00:00:33]} Qxe3 {[%emt 00:00:01] [%clk 00:00:47]} 22. Nd5 {[%emt
00:00:02] [%clk 00:00:34]} Qg3 {[%emt 00:00:01] [%clk 00:00:47]} 23. Rf3 {[%emt
00:00:05] [%clk 00:00:30]} Qe5 {[%emt 00:00:02] [%clk 00:00:48]} 24. Nf6+ {[%emt
00:00:04] [%clk 00:00:28]} Kg7 {[%emt 00:00:14] [%clk 00:00:36]} 25. Ng4 {[%emt
00:00:03] [%clk 00:00:28]} Qe6 {[%emt 00:00:31] [%clk 00:00:07]} 26. Qd2 {[%emt
00:00:03] [%clk 00:00:26]} f6 {[%emt 00:00:02] [%clk 00:00:07]} 27. Raf1 {[%emt
00:00:04] [%clk 00:00:24]} Be7 {[%emt 00:00:02] [%clk 00:00:08]} 28. Qe3 {[%emt
00:00:14] [%clk 00:00:12]} b6 {[%emt 00:00:03] [%clk 00:00:07]} 29. e5 {[%emt
00:00:02] [%clk 00:00:11]} f5 {[%emt 00:00:02] [%clk 00:00:07]} 30. Nf2 {[%emt
00:00:09] [%clk 00:00:04]} Bc5 {[%emt 00:00:05] [%clk 00:00:05]} 31. Qe2 {[%emt
00:00:02] [%clk 00:00:04]} Bxf2 {[%emt 00:00:02] [%clk 00:00:05]} 32. R3xf2
{[%emt 00:00:03] [%clk 00:00:00]} 0-1

[Site "Europe Echecs"]